[Event "XXI Torredembarra Open 2019"]
[Site "Torredembarra"]
[Date "2019.07.06"]
[Round "1.1"]
[White "Farran Martos, Francesc X."]
[Black "Gonzalez Figueras, Carles"]
[Result "1-0"]
[ECO "B86"]
[WhiteElo "2432"]
[BlackElo "1775"]
[Annotator "NA"]
[PlyCount "47"]
[EventDate "2019.07.06"]
[EventType "swiss"]
[EventCountry "ESP"]
[SourceTitle "playchess.com"]
[Source "ChessBase"]
[SourceQuality "1"]
[TimeControl "5400+30"]

1. e4 c5 2. Nf3 d6 3. d4 cxd4 4. Nxd4 Nf6 5. Nc3 a6 6. Bc4 {[%emt 0:02:03]} e6 {[%emt 0:04:18]} 7. Bb3 {[%emt 0:04:45]} Nbd7 {[%emt 0:00:00]} 8. f4 {[%emt 0:02:36]} Nc5 {[%emt 0:01:28]} 9. Qf3 {[%emt 0:03:58]} Qc7 {[%emt 0:02:31]} 10. g4 {[%emt 0:09:47]} b5 {[%emt 0:03:47]} 11. g5 {[%emt 0:11:22]} Nfxe4 {[%emt 0:13:05]} 12. Nxe4 {[%emt 0:11:56]} Nxe4 {[%emt 0:02:32]} 13. Qxe4 {[%emt 0:02:14]} Bb7 {[%emt 0:04:20]} 14. Nxe6 {[%emt 0:04:37]} Qa5+ {[%emt 0:01:01]} 15. Bd2 {[%emt 0:00:20]} Bxe4 {[%emt 0:03:20]} 16. Bxa5 {[%emt 0:00:59]} fxe6 {[%emt 0:04:28]} 17. Rf1 {[%emt 0:01:19]} Bf5 {[%emt 0:03:01]} 18. O-O-O {[%emt 0:01:48]} Be7 {[%emt 0:12:44]} 19. Rfe1 {[%emt 0:01:27]} Rc8 {[%emt 0:06:04]} 20. Bxe6 {[%emt 0:03:32]} Rxc2+ {[%emt 0:02:34]} 21. Kb1 {[%emt 0:00:16]} Rc5+ {[%emt 0:00:30]} 22. Bxf5 {[%emt 0:00:05]} Rxf5 {[%emt 0:00:09]} 23. Rxd6 {[%emt 0:00:18]} Kf7 {[%emt 0:01:58]} 24. Rd7 {[%emt 0:00:29]} 1-0

[Event "XXI Torredembarra Open 2019"]
[Site "Torredembarra"]
[Date "2019.07.06"]
[Round "1.2"]
[White "Costa Berenguer, Joan"]
[Black "Dardha, Daniel"]
[Result "0-1"]
[ECO "B73"]
[WhiteElo "1770"]
[BlackElo "2420"]
[Annotator "NA"]
[PlyCount "94"]
[EventDate "2019.07.06"]
[EventType "swiss"]
[EventCountry "ESP"]
[SourceTitle "playchess.com"]
[Source "ChessBase"]
[SourceQuality "1"]
[TimeControl "5400+30"]

1. e4 {[%emt 0:00:00]} c5 {[%emt 0:00:00]} 2. Nf3 {[%emt 0:00:01]} g6 {[%emt 0:00:32]} 3. d4 {[%emt 0:00:42]} cxd4 {[%emt 0:00:10]} 4. Nxd4 {[%emt 0:00:23]} Bg7 {[%emt 0:00:46]} 5. Be3 {[%emt 0:01:11]} Nf6 {[%emt 0:00:46]} 6. Nc3 {[%emt 0:01:18]} d6 {[%emt 0:00:21]} 7. Be2 {[%emt 0:00:56]} O-O {[%emt 0:00:20]} 8. O-O {[%emt 0:01:10]} Nc6 {[%emt 0:00:08]} 9. h3 {[%emt 0:01:38]} Bd7 {[%emt 0:00:56]} 10. Nxc6 {[%emt 0:02:50]} Bxc6 {[%emt 0:00:19]} 11. f3 {[%emt 0:00:38]} Qa5 {[%emt 0:02:43]} 12. Qe1 {[%emt 0:01:57]} Rfc8 {[%emt 0:00:38]} 13. Qf2 {[%emt 0:03:59]} b5 {[%emt 0:00:57]} 14. a3 {[%emt 0:04:49]} b4 {[%emt 0:01:39]} 15. axb4 Qxb4 {[%emt 0:00:25]} 16. Rab1 {[%emt 0:03:29]} Nd7 {[%emt 0:01:11]} 17. Bd3 {[%emt 0:05:11]} a5 {[%emt 0:04:17]} 18. Nd5 {[%emt 0:03:10]} Bxd5 {[%emt 0:00:12]} 19. c3 {[%emt 0:00:58]} Qb3 {[%emt 0:05:20]} 20. exd5 {[%emt 0:01:17]} Nf6 {[%emt 0:03:45]} 21. Bd4 {[%emt 0:04:48]} Nxd5 {[%emt 0:01:36]} 22. Bxg7 {[%emt 0:04:36]} Kxg7 {[%emt 0:00:13]} 23. Qd4+ {[%emt 0:00:58]} Nf6 {[%emt 0:00:12]} 24. f4 {[%emt 0:02:09]} Rab8 {[%emt 0:01:17]} 25. f5 {[%emt 0:06:06]} Qb6 {[%emt 0:00:21]} 26. Qxb6 {[%emt 0:00:38]} Rxb6 {[%emt 0:00:16]} 27. Rfe1 {[%emt 0:01:40]} Rc7 {[%emt 0:00:39]} 28. g4 {[%emt 0:04:30]} g5 {[%emt 0:08:52]} 29. Kf2 {[%emt 0:02:55]} Nd5 {[%emt 0:00:37]} 30. Kg3 {[%emt 0:00:41]} Nf4 {[%emt 0:00:45]} 31. Bc2 {[%emt 0:02:37]} d5 {[%emt 0:04:16]} 32. h4 {[%emt 0:01:33]} h6 {[%emt 0:00:54]} 33. hxg5 {[%emt 0:02:51]} hxg5 {[%emt 0:00:13]} 34. f6+ {[%emt 0:02:08]} Rxf6 {[%emt 0:00:58]} 35. Re5 {[%emt 0:01:31]} Kf8 {[%emt 0:07:44]} 36. Rxg5 {[%emt 0:02:02]} e6 {[%emt 0:10:21]} 37. Rf1 {[%emt 0:04:26]} Nh5+ {[%emt 0:04:13]} 38. Kg2 {[%emt 0:03:03]} Rxf1 {[%emt 0:00:10]} 39. Kxf1 {[%emt 0:00:30]} Nf6 {[%emt 0:03:09]} 40. Ke2 {[%emt 0:00:30]} Rc4 {[%emt 0:04:22]} 41. Kf3 {[%emt 0:01:50]} a4 {[%emt 0:01:05]} 42. Bd3 {[%emt 0:02:04]} Rc7 {[%emt 0:00:11]} 43. Re5 {[%emt 0:01:09]} a3 {[%emt 0:00:18]} 44. g5 {[%emt 0:06:35]} axb2 {[%emt 0:00:56]} 45. gxf6 {[%emt 0:00:17]} Rxc3 {[%emt 0:00:08]} 46. Rh5 {[%emt 0:01:53]} Rxd3+ {[%emt 0:00:23]} 47. Ke2 {[%emt 0:00:32]} Ke8 {[%emt 0:00:25]} 0-1

[Event "XXI Torredembarra Open 2019"]
[Site "Torredembarra"]
[Date "2019.07.06"]
[Round "1.3"]
[White "Lacasa Diaz, Jose Antonio"]
[Black "Gomez Navais, Marcal"]
[Result "1-0"]
[ECO "A01"]
[WhiteElo "2391"]
[BlackElo "1768"]
[Annotator "NA"]
[PlyCount "77"]
[EventDate "2019.07.06"]
[EventType "swiss"]
[EventCountry "ESP"]
[SourceTitle "playchess.com"]
[Source "ChessBase"]
[SourceQuality "1"]
[TimeControl "5400+30"]

1. b3 {[%emt 0:00:14]} e5 {[%emt 0:00:00]} 2. Bb2 {[%emt 0:00:00]} Nc6 3. e3 {[%emt 0:00:00]} Nf6 {[%emt 0:10:04]} 4. c4 {[%emt 0:00:01]} Be7 {[%emt 0:00:05]} 5. Nc3 {[%emt 0:00:43]} O-O {[%emt 0:01:54]} 6. a3 {[%emt 0:00:36]} d6 {[%emt 0:04:03]} 7. Nf3 {[%emt 0:02:04]} Bg4 {[%emt 0:03:56]} 8. Be2 {[%emt 0:01:07]} d5 9. cxd5 Nxd5 {[%emt 0:08:45]} 10. Qc2 {[%emt 0:02:08]} Nxc3 {[%emt 0:10:53]} 11. Bxc3 {[%emt 0:00:15]} Bd6 {[%emt 0:04:51]} 12. b4 {[%emt 0:00:56]} a6 {[%emt 0:01:17]} 13. h3 {[%emt 0:03:30]} Be6 {[%emt 0:00:54]} 14. d3 {[%emt 0:01:15]} f6 {[%emt 0:02:13]} 15. Qb2 {[%emt 0:14:34]} Qe8 {[%emt 0:04:44]} 16. g4 {[%emt 0:09:11]} b5 {[%emt 0:07:18]} 17. g5 {[%emt 0:02:32]} fxg5 {[%emt 0:06:43]} 18. Nxg5 {[%emt 0:01:08]} Bd7 {[%emt 0:04:12]} 19. Bf3 {[%emt 0:09:32]} h6 {[%emt 0:03:40]} 20. Bd5+ {[%emt 0:00:27]} Kh8 {[%emt 0:00:41]} 21. h4 {[%emt 0:01:03]} g6 {[%emt 0:06:53]} 22. Ne4 {[%emt 0:02:05]} Qe7 {[%emt 0:02:14]} 23. f4 {[%emt 0:04:25]} Rae8 {[%emt 0:02:00]} 24. O-O-O {[%emt 0:06:36]} a5 {[%emt 0:01:51]} 25. Nxd6 {[%emt 0:00:25]} cxd6 {[%emt 0:00:27]} 26. Rdg1 {[%emt 0:00:37]} Rf6 {[%emt 0:01:49]} 27. h5 {[%emt 0:01:53]} Qg7 {[%emt 0:02:55]} 28. bxa5 {[%emt 0:03:35]} Ne7 {[%emt 0:02:33]} 29. Be4 {[%emt 0:00:41]} Nf5 {[%emt 0:03:30]} 30. a6 {[%emt 0:01:51]} Nxe3 {[%emt 0:01:55]} 31. Bxg6 {[%emt 0:02:01]} Rc8 {[%emt 0:00:57]} 32. fxe5 {[%emt 0:01:02]} dxe5 {[%emt 0:00:28]} 33. Kb1 {[%emt 0:00:20]} Rc5 {[%emt 0:01:58]} 34. Be4 {[%emt 0:00:39]} Qf7 {[%emt 0:00:38]} 35. a7 {[%emt 0:00:45]} Rc8 {[%emt 0:00:35]} 36. Bxe5 {[%emt 0:00:38]} Bf5 {[%emt 0:00:32]} 37. Bxf6+ {[%emt 0:00:23]} Kh7 {[%emt 0:00:12]} 38. Rg7+ {[%emt 0:00:17]} Qxg7 {[%emt 0:00:49]} 39. Bxg7 {[%emt 0:00:07]} 1-0

[Event "XXI Torredembarra Open 2019"]
[Site "Torredembarra"]
[Date "2019.07.06"]
[Round "1.4"]
[White "Matons Calafi, Eva M."]
[Black "Djuric, Stefan"]
[Result "0-1"]
[ECO "A05"]
[WhiteElo "1744"]
[BlackElo "2368"]
[Annotator "NA"]
[PlyCount "60"]
[EventDate "2019.07.06"]
[EventType "swiss"]
[EventCountry "ESP"]
[SourceTitle "playchess.com"]
[Source "ChessBase"]
[SourceQuality "1"]
[TimeControl "5400+30"]

1. Nf3 g6 {[%emt 0:13:49]} 2. g3 Bg7 3. Bg2 c5 4. d3 Nc6 5. e4 d6 6. O-O Nf6 7. c3 O-O 8. Nbd2 {[%emt 0:08:24]} Ne5 9. Qe2 {[%emt 0:00:23]} Bg4 {[%emt 0:00:33]} 10. h3 {[%emt 0:04:34]} Bd7 {[%emt 0:01:42]} 11. Nxe5 {[%emt 0:01:05]} dxe5 {[%emt 0:01:31]} 12. Nf3 {[%emt 0:02:37]} Qc7 {[%emt 0:06:49]} 13. Be3 {[%emt 0:01:20]} Rad8 {[%emt 0:07:03]} 14. a4 {[%emt 0:08:52]} b6 {[%emt 0:06:35]} 15. Ne1 {[%emt 0:06:45]} Nh5 {[%emt 0:00:23]} 16. Qd2 {[%emt 0:03:16]} c4 {[%emt 0:03:16]} 17. g4 {[%emt 0:02:44]} Nf4 {[%emt 0:00:24]} 18. Bxf4 {[%emt 0:00:19]} exf4 {[%emt 0:00:01]} 19. d4 {[%emt 0:00:17]} e5 {[%emt 0:02:01]} 20. d5 {[%emt 0:00:19]} a5 {[%emt 0:02:24]} 21. Nc2 {[%emt 0:05:02]} Bf6 {[%emt 0:02:14]} 22. Rfd1 {[%emt 0:06:01]} Kg7 {[%emt 0:00:29]} 23. Qe2 {[%emt 0:00:43]} h5 {[%emt 0:03:14]} 24. f3 {[%emt 0:04:56]} Be7 {[%emt 0:02:01]} 25. Bf1 {[%emt 0:01:25]} Bc5+ {[%emt 0:03:54]} 26. Kh2 {[%emt 0:05:31]} hxg4 {[%emt 0:06:43]} 27. fxg4 {[%emt 0:04:48]} Rh8 {[%emt 0:00:04]} 28. Kg2 {[%emt 0:02:44]} Qc8 {[%emt 0:00:28]} 29. Kf3 {[%emt 0:00:53]} Rh4 {[%emt 0:00:30]} 30. Bg2 {[%emt 0:03:22]} Bxg4+ {[%emt 0:00:15]} 0-1

[Event "XXI Torredembarra Open 2019"]
[Site "Torredembarra"]
[Date "2019.07.06"]
[Round "1.5"]
[White "Pogorelov, Ruslan"]
[Black "Nieves Alarcon, Josep Antoni"]
[Result "1-0"]
[ECO "B00"]
[WhiteElo "2347"]
[BlackElo "1741"]
[Annotator "NA"]
[PlyCount "69"]
[EventDate "2019.07.06"]
[EventType "swiss"]
[EventCountry "ESP"]
[SourceTitle "playchess.com"]
[Source "ChessBase"]
[SourceQuality "1"]
[TimeControl "5400+30"]

1. Nf3 {[%emt 0:02:23]} Nf6 {[%emt 0:01:56]} 2. c4 {[%emt 0:00:15]} d6 {[%emt 0:00:26]} 3. d4 {[%emt 0:00:34]} b6 {[%emt 0:01:20]} 4. Nc3 {[%emt 0:00:26]} e6 {[%emt 0:00:12]} 5. e4 {[%emt 0:00:00]} Bb7 {[%emt 0:00:19]} 6. Bd3 {[%emt 0:00:00]} Nbd7 {[%emt 0:00:36]} 7. O-O {[%emt 0:00:00]} Be7 {[%emt 0:00:21]} 8. Re1 {[%emt 0:00:00]} e5 {[%emt 0:00:50]} 9. Rb1 {[%emt 0:02:08]} O-O {[%emt 0:02:26]} 10. d5 {[%emt 0:00:23]} a5 {[%emt 0:02:32]} 11. a3 {[%emt 0:00:34]} Nc5 {[%emt 0:01:47]} 12. Bc2 {[%emt 0:00:11]} Bc8 {[%emt 0:03:30]} 13. b4 {[%emt 0:00:34]} Nb7 {[%emt 0:00:43]} 14. h3 {[%emt 0:00:17]} h6 {[%emt 0:00:51]} 15. Be3 {[%emt 0:00:40]} Nh7 {[%emt 0:02:12]} 16. c5 {[%emt 0:03:03]} bxc5 {[%emt 0:07:31]} 17. bxc5 {[%emt 0:01:09]} f6 {[%emt 0:01:08]} 18. Ba4 {[%emt 0:12:36]} Nxc5 {[%emt 0:03:05]} 19. Bc6 {[%emt 0:00:42]} Ra6 {[%emt 0:04:20]} 20. Bxc5 {[%emt 0:01:21]} dxc5 {[%emt 0:00:26]} 21. Na4 {[%emt 0:00:55]} Bd6 {[%emt 0:00:57]} 22. Qc2 {[%emt 0:01:20]} Qe7 {[%emt 0:00:57]} 23. Qc4 {[%emt 0:00:47]} Ra7 {[%emt 0:01:05]} 24. Nxc5 {[%emt 0:03:42]} Kh8 {[%emt 0:01:26]} 25. Nh4 {[%emt 0:15:26]} Qf7 {[%emt 0:01:28]} 26. Ne6 {[%emt 0:00:14]} Rg8 {[%emt 0:04:05]} 27. Re3 {[%emt 0:07:31]} Ng5 {[%emt 0:03:04]} 28. Nxg5 {[%emt 0:00:19]} hxg5 {[%emt 0:01:36]} 29. Nf5 {[%emt 0:00:19]} Bxf5 {[%emt 0:06:58]} 30. exf5 {[%emt 0:01:08]} Qe7 {[%emt 0:00:12]} 31. h4 {[%emt 0:02:54]} g6 {[%emt 0:01:57]} 32. hxg5 {[%emt 0:01:32]} fxg5 {[%emt 0:00:20]} 33. Rh3+ {[%emt 0:02:07]} Kg7 {[%emt 0:00:42]} 34. fxg6 {[%emt 0:00:08]} Qf6 {[%emt 0:02:59]} 35. Rh7+ {[%emt 0:07:29]} 1-0

[Event "XXI Torredembarra Open 2019"]
[Site "Torredembarra"]
[Date "2019.07.06"]
[Round "1.6"]
[White "Ventura Rius, Andreu"]
[Black "Gonzalez Rodriguez, Jorge A."]
[Result "0-1"]
[ECO "A46"]
[WhiteElo "1726"]
[BlackElo "2201"]
[Annotator "NA"]
[PlyCount "78"]
[EventDate "2019.07.06"]
[EventType "swiss"]
[EventCountry "ESP"]
[SourceTitle "playchess.com"]
[Source "ChessBase"]
[SourceQuality "1"]
[TimeControl "5400+30"]

1. Nf3 b5 2. d4 Bb7 3. e3 a6 4. Bd3 Nf6 5. Nbd2 e6 6. b3 c5 7. Bb2 {[%emt 0:02:35]} cxd4 {[%emt 0:13:59]} 8. exd4 {[%emt 0:01:03]} Be7 {[%emt 0:00:00]} 9. O-O {[%emt 0:10:09]} O-O {[%emt 0:00:00]} 10. Ng5 {[%emt 0:11:40]} d5 11. Qe2 {[%emt 0:11:41]} Nc6 {[%emt 0:00:00]} 12. a3 {[%emt 0:00:00]} Qb6 {[%emt 0:00:00]} 13. Ngf3 {[%emt 0:00:00]} Rac8 {[%emt 0:00:00]} 14. Rab1 {[%emt 0:06:54]} b4 {[%emt 0:00:00]} 15. a4 {[%emt 0:01:23]} Rc7 {[%emt 0:00:00]} 16. Rbc1 {[%emt 0:02:18]} Rfc8 {[%emt 0:02:29]} 17. Rfe1 {[%emt 0:02:30]} a5 {[%emt 0:00:15]} 18. Nf1 {[%emt 0:02:58]} Nb8 {[%emt 0:01:34]} 19. Ng3 {[%emt 0:00:21]} Ba6 {[%emt 0:00:11]} 20. Ne5 {[%emt 0:00:44]} Bxd3 {[%emt 0:00:28]} 21. Qxd3 {[%emt 0:00:29]} Nc6 {[%emt 0:01:08]} 22. f4 {[%emt 0:09:18]} Nxe5 {[%emt 0:04:20]} 23. fxe5 {[%emt 0:01:46]} Ne8 {[%emt 0:07:30]} 24. Re2 {[%emt 0:00:07]} Bg5 {[%emt 0:00:22]} 25. Rf1 {[%emt 0:00:10]} g6 {[%emt 0:00:10]} 26. Kh1 {[%emt 0:03:48]} Ng7 {[%emt 0:00:16]} 27. Ref2 {[%emt 0:01:18]} Qa7 {[%emt 0:03:37]} 28. Re1 {[%emt 0:04:00]} h5 {[%emt 0:00:26]} 29. Nf1 {[%emt 0:00:52]} Nf5 {[%emt 0:00:41]} 30. g3 {[%emt 0:00:43]} Rc6 {[%emt 0:02:38]} 31. Kg2 {[%emt 0:00:06]} Rc3 {[%emt 0:15:32]} 32. Bxc3 {[%emt 0:11:54]} Rxc3 {[%emt 0:00:02]} 33. Qb5 {[%emt 0:00:07]} Nxd4 {[%emt 0:00:21]} 34. Qe8+ {[%emt 0:00:19]} Kg7 {[%emt 0:00:03]} 35. h4 {[%emt 0:00:09]} Bh6 {[%emt 0:00:25]} 36. Qd8 {[%emt 0:00:46]} Nxc2 {[%emt 0:10:07]} 37. Qf6+ {[%emt 0:01:44]} Kg8 {[%emt 0:00:30]} 38. Qd8+ {[%emt 0:03:04]} Kh7 {[%emt 0:00:29]} 39. Qe8 {[%emt 0:00:16]} Nxe1+ {[%emt 0:00:11]} 0-1

[Event "XXI Torredembarra Open 2019"]
[Site "Torredembarra"]
[Date "2019.07.06"]
[Round "1.7"]
[White "Mateos Rozas, Miguel Angel"]
[Black "Marcer Hernandez, Jordi"]
[Result "1-0"]
[ECO "C01"]
[WhiteElo "2194"]
[BlackElo "1725"]
[Annotator "NA"]
[PlyCount "79"]
[EventDate "2019.07.06"]
[EventType "swiss"]
[EventCountry "ESP"]
[SourceTitle "playchess.com"]
[Source "ChessBase"]
[SourceQuality "1"]
[TimeControl "5400+30"]

1. e4 {[%emt 0:00:00]} d6 {[%emt 0:02:10]} 2. d4 {[%emt 0:05:06]} e6 3. g3 {[%emt 0:00:00]} g6 {[%emt 0:00:54]} 4. Bg2 {[%emt 0:00:00]} Bg7 {[%emt 0:00:05]} 5. Ne2 {[%emt 0:00:00]} Ne7 {[%emt 0:00:12]} 6. O-O {[%emt 0:00:14]} O-O {[%emt 0:02:45]} 7. c4 {[%emt 0:01:15]} Nbc6 {[%emt 0:02:51]} 8. Nbc3 {[%emt 0:02:05]} f6 {[%emt 0:01:16]} 9. Be3 {[%emt 0:07:31]} h6 10. Rb1 {[%emt 0:07:01]} e5 {[%emt 0:01:45]} 11. d5 {[%emt 0:01:08]} Na5 {[%emt 0:05:04]} 12. Qd3 {[%emt 0:00:00]} b6 {[%emt 0:00:00]} 13. b4 {[%emt 0:00:00]} Nb7 {[%emt 0:00:00]} 14. Nc1 {[%emt 0:03:15]} f5 {[%emt 0:00:00]} 15. N1e2 {[%emt 0:09:06]} g5 {[%emt 0:05:34]} 16. exf5 {[%emt 0:06:02]} Bxf5 {[%emt 0:00:33]} 17. Ne4 {[%emt 0:00:00]} Qd7 {[%emt 0:02:47]} 18. N2c3 {[%emt 0:02:58]} Bh3 {[%emt 0:14:21]} 19. c5 {[%emt 0:04:05]} Bxg2 {[%emt 0:06:45]} 20. Kxg2 {[%emt 0:00:39]} Qg4 {[%emt 0:00:34]} 21. f3 {[%emt 0:01:53]} Qf5 {[%emt 0:01:59]} 22. Nb5 {[%emt 0:02:24]} Rfc8 {[%emt 0:04:07]} 23. Qb3 {[%emt 0:10:41]} Qf7 {[%emt 0:06:55]} 24. cxd6 {[%emt 0:01:48]} Nxd5 {[%emt 0:01:51]} 25. Bg1 {[%emt 0:11:28]} c6 {[%emt 0:02:21]} 26. Na3 {[%emt 0:01:17]} Rd8 {[%emt 0:02:27]} 27. b5 {[%emt 0:00:52]} c5 {[%emt 0:03:54]} 28. Rbd1 {[%emt 0:00:53]} Nf6 {[%emt 0:02:58]} 29. Nc4 {[%emt 0:00:18]} Nxe4 {[%emt 0:02:56]} 30. fxe4 {[%emt 0:00:08]} Qe6 {[%emt 0:00:06]} 31. Rd5 {[%emt 0:09:41]} Kh8 {[%emt 0:05:25]} 32. Rfd1 {[%emt 0:00:00]} Rd7 {[%emt 0:04:34]} 33. Ne3 {[%emt 0:00:00]} Rxd6 {[%emt 0:04:25]} 34. Rxd6 {[%emt 0:00:00]} Qxb3 {[%emt 0:00:24]} 35. axb3 {[%emt 0:00:00]} Nxd6 {[%emt 0:00:29]} 36. Rxd6 {[%emt 0:00:00]} a5 {[%emt 0:01:13]} 37. Rxb6 {[%emt 0:00:00]} a4 {[%emt 0:00:00]} 38. Ra6 {[%emt 0:02:31]} Rxa6 {[%emt 0:00:28]} 39. bxa6 {[%emt 0:00:09]} axb3 {[%emt 0:00:02]} 40. Nc4 {[%emt 0:00:24]} 1-0

[Event "XXI Torredembarra Open 2019"]
[Site "Torredembarra"]
[Date "2019.07.06"]
[Round "1.8"]
[White "Ventura Fontanet, Ferran"]
[Black "Iagar, Razvan-Gabriel"]
[Result "0-1"]
[ECO "C02"]
[WhiteElo "1708"]
[BlackElo "2138"]
[Annotator "NA"]
[PlyCount "96"]
[EventDate "2019.07.06"]
[EventType "swiss"]
[EventCountry "ESP"]
[SourceTitle "playchess.com"]
[Source "ChessBase"]
[SourceQuality "1"]
[TimeControl "5400+30"]

1. e4 e6 2. d4 d5 3. e5 c5 4. c3 Nc6 5. Nf3 Qb6 6. Bd3 cxd4 7. cxd4 Bd7 8. O-O Nxd4 9. Nxd4 {[%emt 0:03:50]} Qxd4 {[%emt 0:03:32]} 10. Nc3 {[%emt 0:02:26]} a6 {[%emt 0:00:00]} 11. g3 {[%emt 0:02:00]} Rc8 {[%emt 0:02:52]} 12. Re1 {[%emt 0:15:32]} Qb4 {[%emt 0:04:18]} 13. a3 {[%emt 0:00:00]} Qb6 {[%emt 0:09:47]} 14. Na4 {[%emt 0:08:35]} Qc6 {[%emt 0:10:41]} 15. Nc3 {[%emt 0:00:00]} Bc5 {[%emt 0:00:57]} 16. Qg4 {[%emt 0:06:17]} Kf8 {[%emt 0:08:44]} 17. Bd2 {[%emt 0:01:51]} h5 {[%emt 0:03:11]} 18. Qf3 {[%emt 0:05:22]} Ne7 {[%emt 0:08:14]} 19. Rac1 {[%emt 0:03:03]} Qb6 {[%emt 0:00:52]} 20. b4 {[%emt 0:02:58]} Bd4 {[%emt 0:00:39]} 21. h4 {[%emt 0:05:07]} Qa7 {[%emt 0:10:55]} 22. Qf4 {[%emt 0:11:41]} b5 {[%emt 0:08:36]} 23. Be3 {[%emt 0:08:55]} Bxe3 {[%emt 0:09:49]} 24. Rxe3 {[%emt 0:00:00]} Be8 {[%emt 0:03:28]} 25. Rf3 {[%emt 0:00:00]} Rc7 {[%emt 0:04:18]} 26. Kg2 {[%emt 0:00:00]} Qb7 {[%emt 0:04:27]} 27. Kh3 {[%emt 0:00:37]} Rh6 {[%emt 0:04:45]} 28. g4 {[%emt 0:05:07]} hxg4+ {[%emt 0:00:19]} 29. Qxg4 {[%emt 0:00:20]} Kg8 {[%emt 0:03:03]} 30. h5 {[%emt 0:04:11]} Nc6 {[%emt 0:00:47]} 31. Rg3 {[%emt 0:01:15]} f5 {[%emt 0:00:31]} 32. exf6 {[%emt 0:02:30]} Rxf6 {[%emt 0:00:14]} 33. Qg5 {[%emt 0:01:39]} Kf8 {[%emt 0:00:15]} 34. Re1 {[%emt 0:06:29]} Nd4 {[%emt 0:00:58]} 35. Qg4 {[%emt 0:02:17]} Rxc3 {[%emt 0:00:37]} 36. Qxd4 {[%emt 0:00:27]} Rc7 {[%emt 0:00:20]} 37. Bg6 {[%emt 0:02:39]} Bf7 {[%emt 0:00:42]} 38. Reg1 {[%emt 0:01:05]} Qa7 {[%emt 0:00:24]} 39. Qe5 {[%emt 0:01:03]} Rd7 {[%emt 0:00:37]} 40. Bxf7 {[%emt 0:00:29]} Rfxf7 {[%emt 0:00:21]} 41. Qxe6 {[%emt 0:00:26]} Qxf2 {[%emt 0:00:24]} 42. Qxa6 {[%emt 0:01:36]} Qf5+ {[%emt 0:00:15]} 43. Rg4 {[%emt 0:00:21]} Qxh5+ {[%emt 0:00:17]} 44. Rh4 {[%emt 0:00:32]} Qf3+ {[%emt 0:00:49]} 45. Kh2 {[%emt 0:01:06]} Qf2+ {[%emt 0:00:11]} 46. Kh3 {[%emt 0:00:36]} Rf3+ {[%emt 0:00:12]} 47. Kg4 {[%emt 0:00:08]} Rf4+ {[%emt 0:00:08]} 48. Kg5 {[%emt 0:00:45]} Qxh4+ {[%emt 0:00:04] Qe6} 0-1

[Event "XXI Torredembarra Open 2019"]
[Site "Torredembarra"]
[Date "2019.07.06"]
[Round "1.9"]
[White "Sirera Bargallo, Tomas"]
[Black "Krivenko, Dion"]
[Result "1/2-1/2"]
[ECO "A04"]
[WhiteElo "2115"]
[BlackElo "1700"]
[Annotator "NA"]
[PlyCount "71"]
[EventDate "2019.07.06"]
[EventType "swiss"]
[EventCountry "ESP"]
[SourceTitle "playchess.com"]
[Source "ChessBase"]
[SourceQuality "1"]
[TimeControl "5400+30"]

1. e4 c5 2. Nf3 Nc6 3. d3 g6 4. g3 Bg7 5. Bg2 e6 6. O-O Nge7 7. c3 {[%emt 0:02:39]} O-O {[%emt 0:09:03]} 8. Be3 {[%emt 0:03:16]} b6 {[%emt 0:00:00]} 9. d4 {[%emt 0:00:40]} cxd4 {[%emt 0:00:00]} 10. Nxd4 {[%emt 0:00:11]} Bb7 {[%emt 0:23:48]} 11. Nb5 {[%emt 0:17:38]} d5 {[%emt 0:00:00]} 12. Bf4 {[%emt 0:14:28]} Ne5 {[%emt 0:00:21]} 13. Bxe5 {[%emt 0:22:59]} Bxe5 {[%emt 0:00:10]} 14. f4 {[%emt 0:00:03]} Bg7 {[%emt 0:01:47]} 15. e5 {[%emt 0:03:59]} Nf5 {[%emt 0:03:53]} 16. Qd3 {[%emt 0:00:00]} Ba6 {[%emt 0:07:48]} 17. a4 {[%emt 0:06:31]} Qe7 {[%emt 0:04:36]} 18. Kh1 {[%emt 0:00:00]} Rac8 {[%emt 0:06:24]} 19. N1a3 {[%emt 0:00:33]} Rfd8 {[%emt 0:01:55]} 20. Nc2 {[%emt 0:00:49]} f6 {[%emt 0:03:41]} 21. Rfe1 {[%emt 0:06:19]} fxe5 {[%emt 0:01:53]} 22. fxe5 {[%emt 0:00:05]} Qg5 {[%emt 0:05:06]} 23. Nb4 {[%emt 0:00:24]} Bxb5 {[%emt 0:03:11]} 24. axb5 {[%emt 0:00:22]} Rc7 {[%emt 0:03:11]} 25. Nc6 {[%emt 0:01:35]} Rdd7 {[%emt 0:00:30]} 26. Bh3 {[%emt 0:01:05]} Kh8 {[%emt 0:03:16]} 27. Bxf5 {[%emt 0:02:13]} gxf5 {[%emt 0:00:14]} 28. Qe3 {[%emt 0:02:32]} Qg6 {[%emt 0:01:35]} 29. Ra4 {[%emt 0:00:56]} Bh6 {[%emt 0:02:24]} 30. Qf3 {[%emt 0:00:37]} Rg7 {[%emt 0:01:15]} 31. Rea1 {[%emt 0:01:58]} f4 {[%emt 0:01:49]} 32. gxf4 {[%emt 0:10:58]} Rcf7 {[%emt 0:00:02]} 33. Rxa7 {[%emt 0:00:02]} Rxf4 {[%emt 0:00:02]} 34. Ra8+ Rg8 35. Rxg8+ {[%emt 0:00:01]} Kxg8 {[%emt 0:00:01]} 36. Ra8+ {[%emt 0:00:52] Kh8 Ra1 Rf7 Qf2} 1/2-1/2